[Event "Early-Titled-Tuesday-Blitz-February-20-2024"]
[Site "Chess.com"]
[Date "2024.02.20"]
[Round "9"]
[White "whiteglovethief"]
[Black "TemploVillamarin"]
[Result "1-0"]
[WhiteElo "2443"]
[BlackElo "2104"]
[TimeControl "180+1"]
[EndTime "9:47:15 PST"]
[Termination "whiteglovethief won by checkmate"]

1. d4 {[%clk 0:03:00.9]} 1... f5 {[%clk 0:02:58.6]} 2. c4 {[%clk 0:02:59]} 2...
e6 {[%clk 0:02:56.3]} 3. g3 {[%clk 0:02:58.7]} 3... Nf6 {[%clk 0:02:54.5]} 4.
Bg2 {[%clk 0:02:59.3]} 4... Be7 {[%clk 0:02:54.1]} 5. Nf3 {[%clk 0:02:59.6]}
5... O-O {[%clk 0:02:54.5]} 6. O-O {[%clk 0:03:00.2]} 6... d6 {[%clk 0:02:54.9]}
7. b3 {[%clk 0:02:58.6]} 7... Qe8 {[%clk 0:02:51.5]} 8. Bb2 {[%clk 0:02:58.7]}
8... Qh5 {[%clk 0:02:50.8]} 9. Nc3 {[%clk 0:02:58]} 9... f4 {[%clk 0:02:25.5]}
10. gxf4 {[%clk 0:02:48.8]} 10... Ng4 {[%clk 0:02:22]} 11. e3 {[%clk 0:02:38.7]}
11... e5 {[%clk 0:02:17]} 12. Nd5 {[%clk 0:02:22.7]} 12... e4 {[%clk 0:02:07.5]}
13. Nxe7+ {[%clk 0:02:16.8]} 13... Kh8 {[%clk 0:02:04.4]} 14. h3 {[%clk
0:02:16.1]} 14... exf3 {[%clk 0:02:01.1]} 15. Qxf3 {[%clk 0:02:14.5]} 15... Be6
{[%clk 0:01:34.3]} 16. d5 {[%clk 0:02:09.1]} 16... Bd7 {[%clk 0:01:32.9]} 17.
hxg4 {[%clk 0:02:04.8]} 17... Bxg4 {[%clk 0:01:33.3]} 18. Qg3 {[%clk 0:02:03.6]}
18... Rf7 {[%clk 0:01:29.5]} 19. f3 {[%clk 0:02:00]} 19... Bd7 {[%clk
0:01:26.2]} 20. Kf2 {[%clk 0:01:33.2]} 20... Rxe7 {[%clk 0:00:26.8]} 21. Rh1
{[%clk 0:01:30.5]} 21... Qf7 {[%clk 0:00:23.1]} 22. Qh4 {[%clk 0:01:23.8]} 22...
Kg8 {[%clk 0:00:23.2]} 23. Qxh7+ {[%clk 0:01:23]} 23... Kf8 {[%clk 0:00:23.5]}
24. Qh8+ {[%clk 0:01:14.6]} 24... Qg8 {[%clk 0:00:23.4]} 25. e4 {[%clk
0:01:13.6]} 25... Na6 {[%clk 0:00:21.7]} 26. Rh7 {[%clk 0:01:08.9]} 26... Nc5
{[%clk 0:00:20]} 27. Bd4 {[%clk 0:00:56.7]} 27... Rae8 {[%clk 0:00:16.8]} 28. f5
{[%clk 0:00:53.7]} 28... Qxh8 {[%clk 0:00:16.9]} 29. Rxh8+ {[%clk 0:00:52.9]}
29... Kf7 {[%clk 0:00:17.4]} 30. Rxe8 {[%clk 0:00:51]} 30... Rxe8 {[%clk
0:00:16.9]} 31. Bxc5 {[%clk 0:00:51]} 31... dxc5 {[%clk 0:00:16.8]} 32. Rh1
{[%clk 0:00:48.4]} 32... Kf6 {[%clk 0:00:16.8]} 33. f4 {[%clk 0:00:44.2]} 33...
c6 {[%clk 0:00:17.3]} 34. e5+ {[%clk 0:00:44]} 34... Kxf5 {[%clk 0:00:16.2]} 35.
Bh3+ {[%clk 0:00:43.5]} 35... Kxf4 {[%clk 0:00:16.9]} 36. Bxd7 {[%clk
0:00:43.6]} 36... Rxe5 {[%clk 0:00:17.8]} 37. dxc6 {[%clk 0:00:42.9]} 37... bxc6
{[%clk 0:00:18.7]} 38. Bxc6 {[%clk 0:00:43]} 38... g5 {[%clk 0:00:18.2]} 39. Rh7
{[%clk 0:00:40.4]} 39... Kg4 {[%clk 0:00:17.8]} 40. Rxa7 {[%clk 0:00:39.4]}
40... Re6 {[%clk 0:00:14]} 41. Bd7 {[%clk 0:00:38.8]} 41... Kf4 {[%clk
0:00:13.5]} 42. Bxe6 {[%clk 0:00:38.3]} 42... g4 {[%clk 0:00:14.4]} 43. Bxg4
{[%clk 0:00:38.1]} 43... Ke5 {[%clk 0:00:15.3]} 44. Rd7 {[%clk 0:00:37.5]} 44...
Ke4 {[%clk 0:00:14.5]} 45. a4 {[%clk 0:00:38.1]} 45... Ke5 {[%clk 0:00:15.4]}
46. a5 {[%clk 0:00:39]} 46... Ke4 {[%clk 0:00:16.1]} 47. a6 {[%clk 0:00:39.5]}
47... Ke5 {[%clk 0:00:16.6]} 48. a7 {[%clk 0:00:40.2]} 48... Kf6 {[%clk
0:00:16.9]} 49. b4 {[%clk 0:00:40.6]} 49... Ke5 {[%clk 0:00:17.8]} 50. a8=Q
{[%clk 0:00:41.1]} 50... cxb4 {[%clk 0:00:16.3]} 51. Qd5+ {[%clk 0:00:41.8]}
51... Kf6 {[%clk 0:00:17.2]} 52. Qf5# {[%clk 0:00:42.3]} 1-0

[Event "Early-Titled-Tuesday-Blitz-February-20-2024"]
[Site "Chess.com"]
[Date "2024.02.20"]
[Round "9"]
[White "Karttunen"]
[Black "Nouali_Mohamed"]
[Result "1-0"]
[WhiteElo "2682"]
[BlackElo "2540"]
[TimeControl "180+1"]
[EndTime "9:47:16 PST"]
[Termination "Karttunen won on time"]

1. e4 {[%clk 0:03:00.9]} 1... c5 {[%clk 0:02:56.3]} 2. Nf3 {[%clk 0:03:00.4]}
2... Nc6 {[%clk 0:02:56.1]} 3. Bb5 {[%clk 0:02:57.5]} 3... Qc7 {[%clk
0:02:56.2]} 4. Nc3 {[%clk 0:02:49.1]} 4... e6 {[%clk 0:02:55]} 5. Bxc6 {[%clk
0:02:46.2]} 5... Qxc6 {[%clk 0:02:53.9]} 6. d4 {[%clk 0:02:44.9]} 6... cxd4
{[%clk 0:02:54.8]} 7. Nxd4 {[%clk 0:02:44.5]} 7... Qc7 {[%clk 0:02:54.8]} 8. O-O
{[%clk 0:02:38.6]} 8... a6 {[%clk 0:02:54.5]} 9. f4 {[%clk 0:02:33.3]} 9... Bc5
{[%clk 0:02:46.2]} 10. Kh1 {[%clk 0:02:31.1]} 10... b5 {[%clk 0:02:29]} 11. a3
{[%clk 0:02:24.7]} 11... Bb7 {[%clk 0:02:25.7]} 12. Nb3 {[%clk 0:01:58.5]} 12...
Bb6 {[%clk 0:02:20]} 13. Qg4 {[%clk 0:01:46.4]} 13... Kf8 {[%clk 0:02:14.8]} 14.
f5 {[%clk 0:01:38.6]} 14... Nf6 {[%clk 0:02:12.1]} 15. Qh4 {[%clk 0:01:38.8]}
15... h5 {[%clk 0:01:28.8]} 16. Bg5 {[%clk 0:00:52.9]} 16... Ng4 {[%clk
0:01:26.3]} 17. Rad1 {[%clk 0:00:32.4]} 17... exf5 {[%clk 0:01:12.7]} 18. Rxf5
{[%clk 0:00:22.5]} 18... Kg8 {[%clk 0:00:53.3]} 19. Rdf1 {[%clk 0:00:17.8]}
19... f6 {[%clk 0:00:49.1]} 20. Bf4 {[%clk 0:00:17.5]} 20... Qc4 {[%clk
0:00:43.6]} 21. Bc1 {[%clk 0:00:13.5]} 21... Re8 {[%clk 0:00:32.1]} 22. h3
{[%clk 0:00:13.2]} 22... Ne3 {[%clk 0:00:25.4]} 23. Bxe3 {[%clk 0:00:12.6]}
23... Bxe3 {[%clk 0:00:26.3]} 24. Qg3 {[%clk 0:00:12.7]} 24... Bg5 {[%clk
0:00:18.8]} 25. h4 {[%clk 0:00:11]} 25... Bh6 {[%clk 0:00:12.5]} 26. Rxf6 {[%clk
0:00:11.1]} 26... Bxe4 {[%clk 0:00:11.2]} 27. Nxe4 {[%clk 0:00:09.9]} 27... Qxe4
{[%clk 0:00:12.1]} 28. Nc5 {[%clk 0:00:10]} 28... Qe7 {[%clk 0:00:08.8]} 29. Rd6
{[%clk 0:00:08.7]} 29... Be3 {[%clk 0:00:06.4]} 30. Nd3 {[%clk 0:00:08.1]} 30...
Rd8 {[%clk 0:00:03.5]} 31. Re1 {[%clk 0:00:07.6]} 31... Re8 {[%clk 0:00:04]} 32.
Rd5 {[%clk 0:00:06.7]} 1-0

[Event "Early-Titled-Tuesday-Blitz-February-20-2024"]
[Site "Chess.com"]
[Date "2024.02.20"]
[Round "9"]
[White "KorolDimitriy75"]
[Black "ajedrez-facil"]
[Result "1-0"]
[WhiteElo "2441"]
[BlackElo "2252"]
[TimeControl "180+1"]
[EndTime "9:47:17 PST"]
[Termination "KorolDimitriy75 won by resignation"]

1. d4 {[%clk 0:03:00.9]} 1... d5 {[%clk 0:02:52.9]} 2. c4 {[%clk 0:03:00.6]}
2... c6 {[%clk 0:02:52.4]} 3. Nc3 {[%clk 0:03:00.9]} 3... Nf6 {[%clk 0:02:52.3]}
4. e3 {[%clk 0:03:01.3]} 4... Bf5 {[%clk 0:02:52]} 5. Nf3 {[%clk 0:03:01.1]}
5... e6 {[%clk 0:02:52.1]} 6. Bd3 {[%clk 0:03:01.6]} 6... Bxd3 {[%clk 0:02:52]}
7. Qxd3 {[%clk 0:03:02.5]} 7... Nbd7 {[%clk 0:02:51.8]} 8. O-O {[%clk
0:03:02.3]} 8... Bd6 {[%clk 0:02:51.6]} 9. e4 {[%clk 0:03:02.5]} 9... dxe4
{[%clk 0:02:51.6]} 10. Nxe4 {[%clk 0:03:03.4]} 10... Nxe4 {[%clk 0:02:51.5]} 11.
Qxe4 {[%clk 0:03:04.3]} 11... Nf6 {[%clk 0:02:52]} 12. Qe2 {[%clk 0:03:04.5]}
12... h6 {[%clk 0:02:51.7]} 13. b3 {[%clk 0:02:46.4]} 13... O-O {[%clk
0:02:51.2]} 14. Bb2 {[%clk 0:02:46.4]} 14... Be7 {[%clk 0:02:49.8]} 15. Rad1
{[%clk 0:02:25.1]} 15... Re8 {[%clk 0:02:48.3]} 16. Rd3 {[%clk 0:02:15.4]} 16...
Qa5 {[%clk 0:02:47]} 17. Bc3 {[%clk 0:02:05.6]} 17... Qh5 {[%clk 0:02:46.5]} 18.
h3 {[%clk 0:02:00.4]} 18... Rad8 {[%clk 0:02:43.7]} 19. Rfd1 {[%clk 0:02:00.2]}
19... a6 {[%clk 0:02:37.4]} 20. Qe3 {[%clk 0:01:50.3]} 20... Nh7 {[%clk
0:02:33.2]} 21. Ne5 {[%clk 0:00:44.3]} 21... Bf6 {[%clk 0:02:21.3]} 22. Qg3
{[%clk 0:00:22.9]} 22... Qg5 {[%clk 0:01:46.8]} 23. Qf3 {[%clk 0:00:17.4]} 23...
Qf5 {[%clk 0:01:37.6]} 24. Qxf5 {[%clk 0:00:16.8]} 24... exf5 {[%clk 0:01:37.5]}
25. Nf3 {[%clk 0:00:15.8]} 25... Ng5 {[%clk 0:01:35.8]} 26. Nxg5 {[%clk
0:00:12.5]} 26... Bxg5 {[%clk 0:01:35.6]} 27. Kf1 {[%clk 0:00:12.1]} 27... Kf8
{[%clk 0:01:32.2]} 28. Bb4+ {[%clk 0:00:07.6]} 28... Be7 {[%clk 0:01:31.6]} 29.
Ba5 {[%clk 0:00:07.1]} 29... Rd7 {[%clk 0:01:30.5]} 30. d5 {[%clk 0:00:07.2]}
30... cxd5 {[%clk 0:01:28.7]} 31. Rxd5 {[%clk 0:00:08.1]} 31... Rxd5 {[%clk
0:01:27.6]} 32. Rxd5 {[%clk 0:00:09]} 32... g6 {[%clk 0:01:27.6]} 33. Rd7 {[%clk
0:00:09]} 33... b5 {[%clk 0:01:22.7]} 34. g3 {[%clk 0:00:06.6]} 34... bxc4
{[%clk 0:01:20.4]} 35. bxc4 {[%clk 0:00:07.5]} 35... Rc8 {[%clk 0:01:17.6]} 36.
Ra7 {[%clk 0:00:06.7]} 36... Rxc4 {[%clk 0:01:13.7]} 37. Rxa6 {[%clk 0:00:06.8]}
37... Rc2 {[%clk 0:01:05.7]} 38. a4 {[%clk 0:00:05.9]} 38... Bc5 {[%clk
0:01:00.5]} 39. Be1 {[%clk 0:00:06.6]} 39... Rc1 {[%clk 0:00:58]} 40. Rc6 {[%clk
0:00:06.4]} 40... Ke7 {[%clk 0:00:49.3]} 41. Rxc5 {[%clk 0:00:05.5]} 41... Rxc5
{[%clk 0:00:48.9]} 42. Bb4 {[%clk 0:00:06.1]} 42... Kd6 {[%clk 0:00:49.8]} 43.
Ke2 {[%clk 0:00:05.7]} 43... Kc6 {[%clk 0:00:49.1]} 44. Bxc5 {[%clk 0:00:05.5]}
44... Kxc5 {[%clk 0:00:50]} 45. Kd3 {[%clk 0:00:06]} 45... Kb4 {[%clk
0:00:47.5]} 46. Kd4 {[%clk 0:00:06.2]} 46... f6 {[%clk 0:00:47.4]} 47. Kd5
{[%clk 0:00:06.4]} 47... g5 {[%clk 0:00:47.8]} 48. Ke6 {[%clk 0:00:06.4]} 48...
f4 {[%clk 0:00:48.1]} 49. Kxf6 {[%clk 0:00:06.4]} 49... fxg3 {[%clk 0:00:48]}
50. fxg3 {[%clk 0:00:07.3]} 50... Kxa4 {[%clk 0:00:47.9]} 51. Kg6 {[%clk
0:00:07.2]} 51... Kb5 {[%clk 0:00:47.7]} 52. Kxh6 {[%clk 0:00:07.5]} 52... Kc6
{[%clk 0:00:48.6]} 53. Kxg5 {[%clk 0:00:07.7]} 1-0

[Event "Early-Titled-Tuesday-Blitz-February-20-2024"]
[Site "Chess.com"]
[Date "2024.02.20"]
[Round "9"]
[White "falzehope0"]
[Black "OneTrickPony_82"]
[Result "1-0"]
[WhiteElo "2425"]
[BlackElo "2530"]
[TimeControl "180+1"]
[EndTime "9:47:20 PST"]
[Termination "falzehope0 won by checkmate"]

1. d4 {[%clk 0:02:34.3]} 1... Nf6 {[%clk 0:02:59.2]} 2. e3 {[%clk 0:02:34.1]}
2... d5 {[%clk 0:02:58.9]} 3. Bd3 {[%clk 0:02:34.2]} 3... c5 {[%clk 0:02:58.5]}
4. c3 {[%clk 0:02:34.1]} 4... Nbd7 {[%clk 0:02:58.1]} 5. f4 {[%clk 0:02:33.6]}
5... Qc7 {[%clk 0:02:52.9]} 6. Nf3 {[%clk 0:02:33]} 6... e6 {[%clk 0:02:44.1]}
7. O-O {[%clk 0:02:31.8]} 7... Be7 {[%clk 0:02:44]} 8. Ne5 {[%clk 0:02:28.6]}
8... b6 {[%clk 0:02:40.3]} 9. Nd2 {[%clk 0:02:27.6]} 9... Bb7 {[%clk 0:02:37.9]}
10. Qf3 {[%clk 0:02:26.2]} 10... O-O {[%clk 0:02:27.7]} 11. g4 {[%clk
0:02:24.9]} 11... Ne8 {[%clk 0:02:22.8]} 12. g5 {[%clk 0:02:22.8]} 12... Nd6
{[%clk 0:02:10.8]} 13. Qh5 {[%clk 0:02:16.7]} 13... f5 {[%clk 0:02:07.3]} 14.
Rf3 {[%clk 0:01:50.6]} 14... Rfe8 {[%clk 0:01:43.3]} 15. Nxd7 {[%clk 0:01:25.9]}
15... Qxd7 {[%clk 0:01:42.9]} 16. Rh3 {[%clk 0:01:25.3]} 16... h6 {[%clk
0:01:39.9]} 17. Qg6 {[%clk 0:01:05.4]} 17... Bf8 {[%clk 0:01:31.9]} 18. Rxh6
{[%clk 0:01:03.7]} 18... Ne4 {[%clk 0:01:01.3]} 19. Nf3 {[%clk 0:00:48.5]} 19...
Bd6 {[%clk 0:01:00.2]} 20. Bb5 {[%clk 0:00:16.8]} 20... Qf7 {[%clk 0:00:54.7]}
21. Qh7+ {[%clk 0:00:15.7]} 21... Kf8 {[%clk 0:00:55.1]} 22. Bxe8 {[%clk
0:00:12.4]} 22... Rxe8 {[%clk 0:00:54.9]} 23. g6 {[%clk 0:00:11.1]} 23... Qf6
{[%clk 0:00:45.5]} 24. Rh5 {[%clk 0:00:10.6]} 24... cxd4 {[%clk 0:00:40.2]} 25.
cxd4 {[%clk 0:00:09.4]} 25... Rc8 {[%clk 0:00:37.6]} 26. Bd2 {[%clk 0:00:09.8]}
26... Rc2 {[%clk 0:00:33.1]} 27. Rc1 {[%clk 0:00:09.3]} 27... Nxd2 {[%clk
0:00:27.7]} 28. Rxc2 {[%clk 0:00:08.6]} 28... Nxf3+ {[%clk 0:00:28.2]} 29. Kf2
{[%clk 0:00:08.6]} 29... Nxd4 {[%clk 0:00:28.4]} 30. Rc1 {[%clk 0:00:05.1]}
30... Nc6 {[%clk 0:00:20.3]} 31. Qh8+ {[%clk 0:00:03.9]} 31... Ke7 {[%clk
0:00:20.7]} 32. Rh7 {[%clk 0:00:04.4]} 32... Kd7 {[%clk 0:00:20.5]} 33. Qxg7+
{[%clk 0:00:03]} 33... Qxg7 {[%clk 0:00:19.4]} 34. Rxg7+ {[%clk 0:00:03.9]}
34... Ne7 {[%clk 0:00:19.8]} 35. Rf7 {[%clk 0:00:03.4]} 35... Ke8 {[%clk
0:00:18]} 36. Rg7 {[%clk 0:00:02.9]} 36... d4 {[%clk 0:00:15.8]} 37. h4 {[%clk
0:00:02.9]} 37... dxe3+ {[%clk 0:00:14.8]} 38. Kxe3 {[%clk 0:00:03.8]} 38...
Nd5+ {[%clk 0:00:15.1]} 39. Kf3 {[%clk 0:00:03.3]} 39... Nxf4+ {[%clk
0:00:12.8]} 40. Rxb7 {[%clk 0:00:03.4]} 40... Nd5 {[%clk 0:00:11.5]} 41. Rc8#
{[%clk 0:00:03.4]} 1-0

[Event "Early-Titled-Tuesday-Blitz-February-20-2024"]
[Site "Chess.com"]
[Date "2024.02.20"]
[Round "9"]
[White "Grande_Strategia"]
[Black "Doublekk14"]
[Result "1-0"]
[WhiteElo "2522"]
[BlackElo "2314"]
[TimeControl "180+1"]
[EndTime "9:47:21 PST"]
[Termination "Grande_Strategia won on time"]

1. f3 {[%clk 0:03:00.9]} 1... d5 {[%clk 0:02:57.9]} 2. Kf2 {[%clk 0:03:01.8]}
2... Nc6 {[%clk 0:02:57.1]} 3. g3 {[%clk 0:03:02.4]} 3... e5 {[%clk 0:02:57]} 4.
Bh3 {[%clk 0:03:03]} 4... f5 {[%clk 0:02:57]} 5. d3 {[%clk 0:03:01.7]} 5... Nf6
{[%clk 0:02:56.9]} 6. Kf1 {[%clk 0:02:59.3]} 6... a5 {[%clk 0:02:54.7]} 7. Bg5
{[%clk 0:02:52]} 7... h6 {[%clk 0:02:54]} 8. Bxf6 {[%clk 0:02:52.1]} 8... Qxf6
{[%clk 0:02:54]} 9. Nd2 {[%clk 0:02:52.1]} 9... Bc5 {[%clk 0:02:53.3]} 10. Bg2
{[%clk 0:02:47.7]} 10... O-O {[%clk 0:02:53]} 11. c3 {[%clk 0:02:47]} 11... f4
{[%clk 0:02:42.2]} 12. g4 {[%clk 0:02:38.6]} 12... Qh4 {[%clk 0:02:41.6]} 13.
Qe1 {[%clk 0:02:39]} 13... Qf6 {[%clk 0:02:33.8]} 14. h4 {[%clk 0:02:36.9]}
14... Be3 {[%clk 0:02:33.3]} 15. Nh3 {[%clk 0:02:21.5]} 15... g5 {[%clk
0:02:32.9]} 16. Nf2 {[%clk 0:02:00.2]} 16... Bd7 {[%clk 0:02:29.9]} 17. Nd1
{[%clk 0:02:00.4]} 17... d4 {[%clk 0:02:23.2]} 18. Ne4 {[%clk 0:01:58.2]} 18...
Qe7 {[%clk 0:01:39.7]} 19. hxg5 {[%clk 0:01:50.8]} 19... hxg5 {[%clk 0:01:39.5]}
20. Rh5 {[%clk 0:01:50.3]} 20... Kf7 {[%clk 0:01:39.7]} 21. Nxg5+ {[%clk
0:01:37.7]} 21... Ke8 {[%clk 0:01:36.4]} 22. Qh4 {[%clk 0:01:34.7]} 22... Kd8
{[%clk 0:01:18.6]} 23. Rh7 {[%clk 0:01:30]} 23... Qf6 {[%clk 0:01:17.6]} 24.
Nxe3 {[%clk 0:01:14]} 24... dxe3 {[%clk 0:01:13.6]} 25. Ne4 {[%clk 0:01:07.2]}
25... Qxh4 {[%clk 0:01:10.8]} 26. Rxh4 {[%clk 0:01:08.1]} 26... b6 {[%clk
0:01:06.4]} 27. Bh3 {[%clk 0:00:50.7]} 27... Kc8 {[%clk 0:01:05.9]} 28. g5
{[%clk 0:00:48.9]} 28... Bxh3+ {[%clk 0:01:05.3]} 29. Rxh3 {[%clk 0:00:49.8]}
29... Kb7 {[%clk 0:01:05.7]} 30. Kg2 {[%clk 0:00:49.8]} 30... Ne7 {[%clk
0:01:00.7]} 31. Rh7 {[%clk 0:00:41.5]} 31... Nf5 {[%clk 0:00:57.1]} 32. Rah1
{[%clk 0:00:41.7]} 32... Rg8 {[%clk 0:00:56]} 33. R1h5 {[%clk 0:00:33]} 33...
Rg6 {[%clk 0:00:50.7]} 34. Kh3 {[%clk 0:00:26.1]} 34... Nd6 {[%clk 0:00:24.8]}
35. R5h6 {[%clk 0:00:14.6]} 35... Rxh6+ {[%clk 0:00:04.1]} 36. Rxh6 {[%clk
0:00:11.6]} 36... Nxe4 {[%clk 0:00:02.7]} 37. dxe4 {[%clk 0:00:12]} 37... Rd8
{[%clk 0:00:01.8]} 38. g6 {[%clk 0:00:10.8]} 1-0

[Event "Early-Titled-Tuesday-Blitz-February-20-2024"]
[Site "Chess.com"]
[Date "2024.02.20"]
[Round "9"]
[White "regenda"]
[Black "N4700000"]
[Result "1-0"]
[WhiteElo "2280"]
[BlackElo "2452"]
[TimeControl "180+1"]
[EndTime "9:47:21 PST"]
[Termination "regenda won on time"]

1. e4 {[%clk 0:03:00.9]} 1... d5 {[%clk 0:03:00.2]} 2. exd5 {[%clk 0:02:59.6]}
2... Nf6 {[%clk 0:03:00.8]} 3. Nc3 {[%clk 0:02:57]} 3... Nxd5 {[%clk 0:02:57.2]}
4. d4 {[%clk 0:02:57.1]} 4... Nxc3 {[%clk 0:02:51.7]} 5. bxc3 {[%clk 0:02:58]}
5... g6 {[%clk 0:02:49.7]} 6. Be3 {[%clk 0:02:53.4]} 6... Bg7 {[%clk 0:02:48.6]}
7. Rb1 {[%clk 0:02:53.1]} 7... O-O {[%clk 0:02:46.5]} 8. h4 {[%clk 0:02:48.5]}
8... Nd7 {[%clk 0:02:35.1]} 9. h5 {[%clk 0:02:47.6]} 9... Nf6 {[%clk 0:02:34]}
10. hxg6 {[%clk 0:02:47.8]} 10... hxg6 {[%clk 0:02:33.5]} 11. Be2 {[%clk
0:02:42.1]} 11... b6 {[%clk 0:02:25.1]} 12. a4 {[%clk 0:02:35.8]} 12... Bb7
{[%clk 0:02:17.6]} 13. Bf3 {[%clk 0:02:36.1]} 13... Bd5 {[%clk 0:02:08.5]} 14.
a5 {[%clk 0:02:35.1]} 14... Re8 {[%clk 0:01:57.9]} 15. c4 {[%clk 0:01:55.8]}
15... Bxc4 {[%clk 0:01:54]} 16. Bxa8 {[%clk 0:01:51.2]} 16... Qxa8 {[%clk
0:01:54.9]} 17. Nf3 {[%clk 0:01:51.8]} 17... Ng4 {[%clk 0:01:38.7]} 18. Rb4
{[%clk 0:01:28.5]} 18... b5 {[%clk 0:01:26.7]} 19. Qd2 {[%clk 0:00:42.1]} 19...
e5 {[%clk 0:01:07.4]} 20. Rxc4 {[%clk 0:00:42.2]} 20... bxc4 {[%clk 0:01:06.6]}
21. O-O {[%clk 0:00:41.3]} 21... Nxe3 {[%clk 0:01:00.8]} 22. fxe3 {[%clk
0:00:41.4]} 22... exd4 {[%clk 0:00:59.8]} 23. exd4 {[%clk 0:00:42.3]} 23... Qd5
{[%clk 0:00:44.3]} 24. Qf2 {[%clk 0:00:29.5]} 24... c3 {[%clk 0:00:33.2]} 25. a6
{[%clk 0:00:27.9]} 25... Re4 {[%clk 0:00:23.2]} 26. Rd1 {[%clk 0:00:21.4]} 26...
Bh6 {[%clk 0:00:19.1]} 27. Rd3 {[%clk 0:00:20.6]} 27... Qb5 {[%clk 0:00:11]} 28.
d5 {[%clk 0:00:17.6]} 28... Qxa6 {[%clk 0:00:10.1]} 29. Kh2 {[%clk 0:00:05.9]}
29... Qd6+ {[%clk 0:00:09.2]} 30. Kg1 {[%clk 0:00:05.7]} 30... Qb6 {[%clk
0:00:07]} 31. Qxb6 {[%clk 0:00:04.9]} 31... cxb6 {[%clk 0:00:06.2]} 32. d6
{[%clk 0:00:05.2]} 32... Re8 {[%clk 0:00:01.8]} 33. d7 {[%clk 0:00:05.6]} 33...
Rd8 {[%clk 0:00:01.2]} 34. Ne5 {[%clk 0:00:06.3]} 1-0

[Event "Early-Titled-Tuesday-Blitz-February-20-2024"]
[Site "Chess.com"]
[Date "2024.02.20"]
[Round "9"]
[White "Casablanca"]
[Black "angelgab3"]
[Result "0-1"]
[WhiteElo "2619"]
[BlackElo "2769"]
[TimeControl "180+1"]
[EndTime "9:47:24 PST"]
[Termination "angelgab3 won by checkmate"]

1. Nf3 {[%clk 0:03:00.9]} 1... d5 {[%clk 0:02:59.3]} 2. d4 {[%clk 0:03:00.3]}
2... Nf6 {[%clk 0:02:59.4]} 3. c4 {[%clk 0:03:00.5]} 3... e6 {[%clk 0:02:59.8]}
4. Nc3 {[%clk 0:03:00.6]} 4... dxc4 {[%clk 0:02:59.6]} 5. e3 {[%clk 0:02:59.8]}
5... a6 {[%clk 0:02:59.4]} 6. a4 {[%clk 0:02:59.5]} 6... c5 {[%clk 0:02:59.8]}
7. Bxc4 {[%clk 0:02:59.5]} 7... Nc6 {[%clk 0:03:00.5]} 8. O-O {[%clk 0:02:59.5]}
8... Be7 {[%clk 0:03:00.3]} 9. dxc5 {[%clk 0:02:57.4]} 9... Qa5 {[%clk
0:02:53.6]} 10. Qe2 {[%clk 0:02:54.5]} 10... O-O {[%clk 0:02:47.2]} 11. Bd2
{[%clk 0:02:54.3]} 11... Qxc5 {[%clk 0:02:46.5]} 12. Rac1 {[%clk 0:02:51.9]}
12... Qh5 {[%clk 0:02:41.9]} 13. Rfd1 {[%clk 0:02:46.8]} 13... e5 {[%clk
0:02:42]} 14. Nd5 {[%clk 0:02:43.6]} 14... e4 {[%clk 0:02:14.2]} 15. Nxe7+
{[%clk 0:02:40.1]} 15... Nxe7 {[%clk 0:02:15.1]} 16. Nd4 {[%clk 0:02:40.1]}
16... Bg4 {[%clk 0:02:14.6]} 17. f3 {[%clk 0:02:40.5]} 17... exf3 {[%clk
0:02:10.2]} 18. gxf3 {[%clk 0:02:41.4]} 18... Bh3 {[%clk 0:02:09.9]} 19. Bb4
{[%clk 0:02:35.1]} 19... Rfe8 {[%clk 0:02:10.2]} 20. Bxe7 {[%clk 0:02:34.9]}
20... Rxe7 {[%clk 0:02:11.1]} 21. Qf2 {[%clk 0:02:25.9]} 21... Rae8 {[%clk
0:02:02.9]} 22. e4 {[%clk 0:02:25.7]} 22... Re5 {[%clk 0:01:55.8]} 23. Bf1
{[%clk 0:02:22.9]} 23... Rg5+ {[%clk 0:01:44.1]} 24. Kh1 {[%clk 0:02:22.7]}
24... Bd7 {[%clk 0:01:42.6]} 25. Ne2 {[%clk 0:01:43.9]} 25... Bxa4 {[%clk
0:01:34.1]} 26. Nf4 {[%clk 0:01:44.3]} 26... Qh6 {[%clk 0:01:31.7]} 27. Rd6
{[%clk 0:01:44.5]} 27... Nxe4 {[%clk 0:01:25.4]} 28. fxe4 {[%clk 0:01:45.4]}
28... Qxd6 {[%clk 0:01:24.9]} 29. Bc4 {[%clk 0:01:43.4]} 29... h6 {[%clk
0:01:00.1]} 30. Nh3 {[%clk 0:01:40]} 30... Re7 {[%clk 0:00:29.4]} 31. Nxg5
{[%clk 0:01:38.8]} 31... hxg5 {[%clk 0:00:30.3]} 32. Bd5 {[%clk 0:01:29.5]}
32... Bc6 {[%clk 0:00:30]} 33. Qf5 {[%clk 0:01:30]} 33... g6 {[%clk 0:00:23.6]}
34. Qxg5 {[%clk 0:01:30.1]} 34... Re5 {[%clk 0:00:16.7]} 35. Qh6 {[%clk
0:01:07.6]} 35... Rxd5 {[%clk 0:00:13.8]} 36. Kg2 {[%clk 0:01:00.5]} 36... Rd2+
{[%clk 0:00:13.5]} 37. Kf3 {[%clk 0:00:58.3]} 37... Rxh2 {[%clk 0:00:11.4]} 38.
Qg5 {[%clk 0:00:55.5]} 38... Rh3+ {[%clk 0:00:09.5]} 39. Ke2 {[%clk 0:00:52]}
39... Bb5+ {[%clk 0:00:07.8]} 40. Kf2 {[%clk 0:00:51.3]} 40... Qh2+ {[%clk
0:00:07.2]} 41. Ke1 {[%clk 0:00:52]} 41... Qh1+ {[%clk 0:00:06.7]} 42. Kd2
{[%clk 0:00:52.3]} 42... Qxe4 {[%clk 0:00:05.5]} 43. Rc8+ {[%clk 0:00:51.6]}
43... Kg7 {[%clk 0:00:04.9]} 44. Qg1 {[%clk 0:00:45.6]} 44... Rd3+ {[%clk
0:00:04.8]} 45. Kc1 {[%clk 0:00:46.2]} 45... Qe3+ {[%clk 0:00:04.4]} 46. Qxe3
{[%clk 0:00:46.6]} 46... Rxe3 {[%clk 0:00:05.3]} 47. Rc7 {[%clk 0:00:47.1]}
47... Bc6 {[%clk 0:00:05.4]} 48. Kd2 {[%clk 0:00:47.6]} 48... Re6 {[%clk
0:00:05.9]} 49. Rc8 {[%clk 0:00:48.1]} 49... g5 {[%clk 0:00:06.3]} 50. Rb8
{[%clk 0:00:49]} 50... g4 {[%clk 0:00:07.2]} 51. Rd8 {[%clk 0:00:48.6]} 51... g3
{[%clk 0:00:07.4]} 52. Rd4 {[%clk 0:00:49.5]} 52... Rg6 {[%clk 0:00:07.5]} 53.
Rg4 {[%clk 0:00:50.4]} 53... g2 {[%clk 0:00:08.4]} 54. Rxg2 {[%clk 0:00:50.5]}
54... Rxg2+ {[%clk 0:00:08.7]} 55. Kc3 {[%clk 0:00:51.4]} 55... Rg4 {[%clk
0:00:09.4]} 56. Kb3 {[%clk 0:00:51]} 56... Re4 {[%clk 0:00:10.3]} 57. Ka3 {[%clk
0:00:51.9]} 57... b5 {[%clk 0:00:10.8]} 58. b4 {[%clk 0:00:48.2]} 58... Kf6
{[%clk 0:00:11.7]} 59. Kb2 {[%clk 0:00:48.9]} 59... Ke6 {[%clk 0:00:12.6]} 60.
Kc2 {[%clk 0:00:49.8]} 60... Kd5 {[%clk 0:00:13.5]} 61. Kd2 {[%clk 0:00:50.7]}
61... f5 {[%clk 0:00:14.4]} 62. Kd3 {[%clk 0:00:51.1]} 62... f4 {[%clk
0:00:15.3]} 63. Kd2 {[%clk 0:00:51.9]} 63... f3 {[%clk 0:00:16.2]} 64. Kd3
{[%clk 0:00:52.8]} 64... f2 {[%clk 0:00:17.1]} 65. Kd2 {[%clk 0:00:53.7]} 65...
f1=Q {[%clk 0:00:17.1]} 66. Kc3 {[%clk 0:00:54]} 66... Qc4+ {[%clk 0:00:17.7]}
67. Kb2 {[%clk 0:00:54.5]} 67... Re2+ {[%clk 0:00:18.6]} 68. Ka1 {[%clk
0:00:54.8]} 68... Qa2# {[%clk 0:00:18.9]} 0-1